[Event "56th Biel Festival Rapid 2023"]
[Site "Biel"]
[Date "2024.04.13"]
[Round "6.12"]
[White "Rosen, Eric"]
[Black "Akshit Kumar J"]
[Result "*"]
[WhiteElo "2344"]
[BlackElo "2105"]
[PlyCount "58"]
[EventDate "2023.07.16"]
[EventType "swiss"]
[EventCountry "SUI"]
[TimeControl "900+5"]

1. d4 {[%emt 0:00:03]} d5 {[%emt 0:00:01]} 2. Bf4 {[%emt 0:00:02]} Nf6 {[%emt 0:00:02]} 3. e3 {[%emt 0:00:05]} c5 {[%emt 0:00:02]} 4. Nf3 {[%emt 0:00:00]} Nc6 {[%emt 0:00:01]} 5. Nbd2 {[%emt 0:00:00]} cxd4 {[%emt 0:00:02]} 6. exd4 {[%emt 0:00:00]} Bg4 {[%emt 0:00:02]} 7. c3 {[%emt 0:00:10]} e6 {[%emt 0:00:01]} 8. Be2 {[%emt 0:00:02]} Bd6 {[%emt 0:01:48]} 9. Bxd6 {[%emt 0:00:02]} Qxd6 {[%emt 0:00:02]} 10. O-O {[%emt 0:00:02]} O-O {[%emt 0:00:12]} 11. Re1 {[%emt 0:00:01]} Rab8 {[%emt 0:02:12]} 12. a4 {[%emt 0:00:10]} a6 {[%emt 0:00:27]} 13. Ne5 {[%emt 0:01:20]} Bxe2 {[%emt 0:00:36]} 14. Qxe2 {[%emt 0:00:03]} Qc7 {[%emt 0:01:01]} 15. Nd3 {[%emt 0:00:14]} Rfc8 {[%emt 0:00:49]} 16. Qf3 {[%emt 0:01:36]} Nd7 {[%emt 0:01:03]} 17. h4 {[%emt 0:00:48]} Na5 {[%emt 0:01:26]} 18. Rac1 {[%emt 0:01:25]} Nc4 {[%emt 0:00:28]} 19. Nf1 {[%emt 0:00:19]} Qc6 {[%emt 0:00:31]} 20. b3 {[%emt 0:01:19]} Na5 {[%emt 0:00:01]} 21. Nd2 {[%emt 0:00:33]} b5 {[%emt 0:00:20]} 22. axb5 {[%emt 0:01:15]} Qxb5 {[%emt 0:00:47]} 23. b4 {[%emt 0:01:21]} Nc4 {[%emt 0:00:15]} 24. Nb3 {[%emt 0:00:09]} a5 {[%emt 0:00:25]} 25. Nbc5 {[%emt 0:00:02]} axb4 {[%emt 0:02:28]} 26. cxb4 {[%emt 0:00:01]} Nd2 {[%emt 0:01:26]} 27. Qe3 {[%emt 0:00:45]} Nc4 {[%emt 0:00:03]} 28. Qf4 {[%emt 0:00:13]} Ra8 {[%emt 0:00:09]} 29. Rc3 {[%emt 0:01:06]} Nf8 {[%emt 0:00:29]} *

[Event "56th Biel Festival Rapid 2023"]
[Site "Biel"]
[Date "2024.04.13"]
[Round "6.14"]
[White "Malli, Suvirr"]
[Black "Sukandar, Irine Kharisma"]
[Result "*"]
[WhiteElo "2094"]
[BlackElo "2358"]
[PlyCount "64"]
[EventDate "2023.07.16"]
[EventType "swiss"]
[EventCountry "SUI"]
[TimeControl "900+5"]

1. e4 {[%emt 0:00:02]} e5 {[%emt 0:00:07]} 2. Nf3 {[%emt 0:00:02]} Nc6 {[%emt 0:00:03]} 3. Bc4 {[%emt 0:00:02]} Nf6 {[%emt 0:00:09]} 4. d3 {[%emt 0:00:02]} Bc5 {[%emt 0:00:07]} 5. O-O {[%emt 0:00:03]} d6 {[%emt 0:00:08]} 6. c3 {[%emt 0:00:02]} a6 {[%emt 0:00:11]} 7. a4 {[%emt 0:00:03]} h6 {[%emt 0:00:27]} 8. Re1 {[%emt 0:00:05]} O-O {[%emt 0:00:21]} 9. a5 {[%emt 0:00:07]} Be6 {[%emt 0:00:29]} 10. Bxe6 {[%emt 0:00:39]} fxe6 {[%emt 0:00:01]} 11. Qb3 {[%emt 0:00:03]} Qd7 {[%emt 0:00:14]} 12. Be3 {[%emt 0:00:34]} Bxe3 {[%emt 0:00:18]} 13. fxe3 {[%emt 0:00:04]} Kh8 {[%emt 0:00:42]} 14. Nbd2 {[%emt 0:00:09]} d5 {[%emt 0:00:24]} 15. exd5 {[%emt 0:00:39]} exd5 {[%emt 0:00:02]} 16. Rad1 {[%emt 0:00:17]} Nxa5 {[%emt 0:02:05]} 17. Qc2 {[%emt 0:01:34]} Nc6 {[%emt 0:00:04]} 18. e4 {[%emt 0:00:11]} d4 {[%emt 0:00:23]} 19. Nc4 {[%emt 0:00:18]} Rae8 {[%emt 0:00:04]} 20. Ra1 {[%emt 0:00:37]} Nh5 {[%emt 0:00:47]} 21. Nh4 {[%emt 0:01:47]} Qg4 {[%emt 0:01:35]} 22. Nf5 {[%emt 0:00:24]} g6 {[%emt 0:01:29]} 23. Ng3 {[%emt 0:02:29]} Nxg3 {[%emt 0:00:05]} 24. hxg3 {[%emt 0:00:02]} Qxg3 {[%emt 0:00:02]} 25. Rf1 {[%emt 0:00:02]} b5 {[%emt 0:00:27]} 26. Nd2 {[%emt 0:00:04]} dxc3 {[%emt 0:02:44]} 27. bxc3 {[%emt 0:00:16]} Qe3+ {[%emt 0:00:01]} 28. Kh1 {[%emt 0:00:06]} Qe2 {[%emt 0:00:32]} 29. Rae1 {[%emt 0:00:43]} Rxf1+ {[%emt 0:00:03]} 30. Rxf1 {[%emt 0:00:02]} Rd8 {[%emt 0:00:14]} 31. Rf3 {[%emt 0:01:25]} Kg7 {[%emt 0:02:25]} 32. Qa2 {[%emt 0:00:32]} Rf8 {[%emt 0:00:19]} *

[Event "56th Biel Festival Rapid 2023"]
[Site "Biel"]
[Date "2024.04.13"]
[Round "6.16"]
[White "Stebahne, Olaf"]
[Black "Vincenti, Leonardo"]
[Result "0-1"]
[WhiteElo "1913"]
[BlackElo "2117"]
[PlyCount "54"]
[EventDate "2023.07.16"]
[EventType "swiss"]
[EventCountry "SUI"]
[TimeControl "900+5"]

1. c4 {[%emt 0:00:04]} e5 {[%emt 0:00:01]} 2. Nc3 {[%emt 0:00:03]} Bb4 {[%emt 0:00:03]} 3. e3 {[%emt 0:00:29]} Nf6 {[%emt 0:00:10]} 4. Nge2 {[%emt 0:00:04]} O-O {[%emt 0:00:12]} 5. g3 {[%emt 0:00:13]} Re8 {[%emt 0:00:12]} 6. Bg2 {[%emt 0:00:04]} c6 {[%emt 0:00:02]} 7. O-O {[%emt 0:00:11]} d6 {[%emt 0:00:35]} 8. a3 {[%emt 0:00:06]} Ba5 {[%emt 0:00:02]} 9. b4 {[%emt 0:00:05]} Bc7 {[%emt 0:00:03]} 10. Bb2 {[%emt 0:00:03]} Be6 {[%emt 0:00:09]} 11. d3 {[%emt 0:00:08]} d5 {[%emt 0:00:29]} 12. cxd5 {[%emt 0:00:19]} Nxd5 {[%emt 0:00:15]} 13. Rc1 {[%emt 0:00:23]} a6 {[%emt 0:00:25]} 14. Qc2 {[%emt 0:00:02]} f6 {[%emt 0:00:42]} 15. Ne4 {[%emt 0:00:37]} Nd7 {[%emt 0:00:13]} 16. Rfd1 {[%emt 0:00:15]} Qe7 {[%emt 0:00:29]} 17. d4 {[%emt 0:00:55]} Bf5 {[%emt 0:00:27]} 18. Qb3 {[%emt 0:00:27]} exd4 {[%emt 0:00:16]} 19. Nc5 {[%emt 0:01:00]} Nxc5 {[%emt 0:00:26]} 20. Rxc5 {[%emt 0:00:19]} dxe3 {[%emt 0:00:16]} 21. f4 {[%emt 0:05:11]} Be6 {[%emt 0:01:06]} 22. Qd3 {[%emt 0:00:40]} Bb6 {[%emt 0:00:11]} 23. Rc2 {[%emt 0:01:11]} Rad8 {[%emt 0:00:35]} 24. Bd4 {[%emt 0:00:13]} Bxd4 {[%emt 0:00:19]} 25. Qxd4 {[%emt 0:00:38]} Nxb4 {[%emt 0:00:37]} 26. Qxd8 {[%emt 0:00:10]} Rxd8 {[%emt 0:00:02]} 27. Rxd8+ {[%emt 0:00:01]} Qxd8 {[%emt 0:00:01]} 0-1

[Event "56th Biel Festival Rapid 2023"]
[Site "Biel"]
[Date "2024.04.13"]
[Round "6.20"]
[White "Matta, Vinay Kumar"]
[Black "Wigger, Michael"]
[Result "1-0"]
[WhiteElo "2111"]
[BlackElo "1878"]
[PlyCount "59"]
[EventDate "2023.07.16"]
[EventType "swiss"]
[EventCountry "SUI"]
[TimeControl "900+5"]

1. e4 {[%emt 0:00:05]} Nf6 {[%emt 0:00:02]} 2. Nc3 {[%emt 0:00:04]} d5 {[%emt 0:00:02]} 3. exd5 {[%emt 0:00:03]} Nxd5 {[%emt 0:00:02]} 4. Bc4 {[%emt 0:00:03]} c6 {[%emt 0:00:06]} 5. Nf3 {[%emt 0:00:06]} Bg4 {[%emt 0:00:02]} 6. d4 {[%emt 0:00:11]} e6 {[%emt 0:00:02]} 7. Bd2 {[%emt 0:00:08]} Nd7 {[%emt 0:00:09]} 8. Qe2 {[%emt 0:00:07]} Be7 {[%emt 0:00:25]} 9. O-O-O {[%emt 0:00:08]} N7b6 {[%emt 0:00:25]} 10. Bb3 {[%emt 0:00:13]} Qc7 {[%emt 0:00:39]} 11. h3 {[%emt 0:00:11]} Bh5 {[%emt 0:00:02]} 12. g4 {[%emt 0:00:03]} Bg6 {[%emt 0:00:01]} 13. Ne5 {[%emt 0:00:08]} O-O-O {[%emt 0:00:17]} 14. h4 {[%emt 0:00:05]} f6 {[%emt 0:02:28]} 15. Nxg6 {[%emt 0:00:03]} hxg6 {[%emt 0:00:01]} 16. Qxe6+ {[%emt 0:00:05]} Kb8 {[%emt 0:00:06]} 17. Nxd5 {[%emt 0:00:07]} Nxd5 {[%emt 0:00:13]} 18. Qf7 {[%emt 0:00:27]} Nf4 {[%emt 0:01:08]} 19. Qxg7 {[%emt 0:00:54]} Ne2+ {[%emt 0:00:14]} 20. Kb1 {[%emt 0:00:02]} Nxd4 {[%emt 0:00:02]} 21. Qxg6 {[%emt 0:00:20]} Nf3 {[%emt 0:00:29]} 22. Bc3 {[%emt 0:00:46]} Nxh4 {[%emt 0:00:19]} 23. Qg7 {[%emt 0:00:19]} Rxd1+ {[%emt 0:03:13]} 24. Rxd1 {[%emt 0:00:03]} Re8 {[%emt 0:00:04]} 25. Bxf6 {[%emt 0:00:41]} Bxf6 {[%emt 0:00:25]} 26. Qxf6 {[%emt 0:00:06]} Ng2 {[%emt 0:00:10]} 27. g5 {[%emt 0:00:14]} Qd7 {[%emt 0:00:19]} 28. Qf3 {[%emt 0:01:18]} Nh4 {[%emt 0:00:24]} 29. Qf4+ {[%emt 0:00:14]} Ka8 {[%emt 0:00:03]} 30. Rxd7 {[%emt 0:00:11]} 1-0

[Event "56th Biel Festival Rapid 2023"]
[Site "Biel"]
[Date "2024.04.13"]
[Round "6.21"]
[White "Ragios, Konstantinos"]
[Black "Baghirov, Rasul"]
[Result "*"]
[WhiteElo "1925"]
[BlackElo "1992"]
[PlyCount "65"]
[EventDate "2023.07.16"]
[EventType "swiss"]
[EventCountry "SUI"]
[TimeControl "900+5"]

1. e4 {[%emt 0:00:03]} c5 {[%emt 0:00:06]} 2. Nf3 {[%emt 0:00:05]} Nc6 {[%emt 0:00:09]} 3. d4 {[%emt 0:00:00]} cxd4 {[%emt 0:00:03]} 4. Nxd4 {[%emt 0:00:00]} Nf6 {[%emt 0:00:01]} 5. Nc3 {[%emt 0:00:01]} a6 {[%emt 0:00:06]} 6. Be2 {[%emt 0:00:17]} e5 {[%emt 0:00:00]} 7. Nb3 {[%emt 0:00:25]} Bb4 {[%emt 0:00:01]} 8. Bg5 {[%emt 0:00:54]} h6 {[%emt 0:00:06]} 9. Bxf6 {[%emt 0:00:16]} Bxc3+ {[%emt 0:00:02]} 10. bxc3 {[%emt 0:00:03]} Qxf6 {[%emt 0:00:02]} 11. Qd5 {[%emt 0:00:53]} O-O {[%emt 0:00:20]} 12. Rd1 {[%emt 0:00:16]} Rd8 {[%emt 0:00:35]} 13. Qd6 {[%emt 0:00:12]} Qxd6 {[%emt 0:01:07]} 14. Rxd6 {[%emt 0:00:01]} Kf8 {[%emt 0:00:00]} 15. O-O {[%emt 0:00:20]} Ke7 {[%emt 0:00:06]} 16. Rfd1 {[%emt 0:00:02]} Nd4 {[%emt 0:01:01]} 17. R6xd4 {[%emt 0:01:34]} exd4 {[%emt 0:00:02]} 18. cxd4 {[%emt 0:00:01]} d6 {[%emt 0:00:19]} 19. c4 {[%emt 0:00:36]} Bd7 {[%emt 0:01:39]} 20. Rb1 {[%emt 0:01:25]} b5 {[%emt 0:01:59]} 21. c5 {[%emt 0:02:24]} dxc5 {[%emt 0:02:23]} 22. Nxc5 {[%emt 0:00:03]} Be6 {[%emt 0:00:02]} 23. d5 {[%emt 0:00:14]} Rdc8 {[%emt 0:00:22]} 24. Nb7 {[%emt 0:02:30]} Rab8 {[%emt 0:00:40]} 25. Na5 {[%emt 0:00:10]} Bd7 {[%emt 0:00:02]} 26. Nb3 {[%emt 0:01:41]} Rc2 {[%emt 0:00:43]} 27. Bd3 {[%emt 0:00:11]} Rxa2 {[%emt 0:00:36]} 28. e5 {[%emt 0:00:01]} Rc8 {[%emt 0:00:10]} 29. Rd1 {[%emt 0:01:36]} Rc3 {[%emt 0:00:11]} 30. d6+ {[%emt 0:00:02]} Kd8 {[%emt 0:00:03]} 31. Bb1 {[%emt 0:00:05]} Ra3 {[%emt 0:00:41]} 32. Nd4 {[%emt 0:00:05]} Ra1 {[%emt 0:00:08]} 33. f4 {[%emt 0:00:08]} *

[Event "56th Biel Festival Rapid 2023"]
[Site "Biel"]
[Date "2024.04.13"]
[Round "6.22"]
[White "Tureshbayev, Anuar"]
[Black "Toenz, Arthur"]
[Result "1-0"]
[WhiteElo "1845"]
[BlackElo "2040"]
[PlyCount "65"]
[EventDate "2023.07.16"]
[EventType "swiss"]
[EventCountry "SUI"]
[TimeControl "900+5"]

1. e4 {[%emt 0:00:02]} c6 {[%emt 0:00:01]} 2. d4 {[%emt 0:00:02]} d5 {[%emt 0:00:01]} 3. f3 {[%emt 0:00:01]} dxe4 {[%emt 0:00:06]} 4. fxe4 {[%emt 0:00:02]} e5 {[%emt 0:00:02]} 5. Nf3 {[%emt 0:00:01]} Bg4 {[%emt 0:00:05]} 6. Bc4 {[%emt 0:00:02]} Nd7 {[%emt 0:00:23]} 7. O-O {[%emt 0:00:08]} Bd6 {[%emt 0:00:14]} 8. Bxf7+ {[%emt 0:00:15]} Kxf7 {[%emt 0:01:42]} 9. Ng5+ {[%emt 0:00:06]} Ke8 {[%emt 0:01:01]} 10. Qxg4 {[%emt 0:00:03]} Ngf6 {[%emt 0:00:35]} 11. Qf3 {[%emt 0:01:32]} Qe7 {[%emt 0:00:26]} 12. Be3 {[%emt 0:01:57]} h6 {[%emt 0:00:12]} 13. Nh3 {[%emt 0:00:02]} exd4 {[%emt 0:01:16]} 14. Bxd4 {[%emt 0:00:04]} Ne5 {[%emt 0:00:12]} 15. Qe2 {[%emt 0:00:36]} g5 {[%emt 0:00:27]} 16. Nd2 {[%emt 0:00:14]} Kd7 {[%emt 0:00:14]} 17. Rad1 {[%emt 0:00:11]} Kc7 {[%emt 0:00:06]} 18. Nc4 {[%emt 0:00:10]} Rad8 {[%emt 0:00:55]} 19. Rf5 {[%emt 0:00:23]} Nfg4 {[%emt 0:01:18]} 20. Nf2 {[%emt 0:01:53]} Nxf2 {[%emt 0:01:50]} 21. Nxe5 {[%emt 0:00:05]} Kc8 {[%emt 0:02:47]} 22. Kxf2 {[%emt 0:00:31]} Bxe5 {[%emt 0:00:24]} 23. Bxe5 {[%emt 0:00:07]} Rhf8 {[%emt 0:00:18]} 24. Rxd8+ {[%emt 0:02:24]} Qxd8 {[%emt 0:00:13]} 25. Rxf8 {[%emt 0:00:24]} Qxf8+ {[%emt 0:00:06]} 26. Kg3 {[%emt 0:00:05]} Qc5 {[%emt 0:00:06]} 27. Qg4+ {[%emt 0:00:05]} Kd8 {[%emt 0:00:04]} 28. Qe6 {[%emt 0:00:36]} Qe3+ {[%emt 0:00:27]} 29. Kg4 {[%emt 0:00:02]} Qxe4+ {[%emt 0:00:25]} 30. Kh5 {[%emt 0:00:03]} Qxc2 {[%emt 0:00:14]} 31. Qd6+ {[%emt 0:00:22]} Ke8 {[%emt 0:00:05]} 32. Qg6+ {[%emt 0:00:08]} Qxg6+ {[%emt 0:00:11]} 33. Kxg6 {[%emt 0:00:02]} 1-0

[Event "56th Biel Festival Rapid 2023"]
[Site "Biel"]
[Date "2024.04.13"]
[Round "6.24"]
[White "Mikavica, Dragoljub"]
[Black "Aeschbacher, Dimitri"]
[Result "*"]
[WhiteElo "2041"]
[BlackElo "1761"]
[PlyCount "38"]
[EventDate "2023.07.16"]
[EventType "swiss"]
[EventCountry "SUI"]
[TimeControl "900+5"]

1. e4 {[%emt 0:00:01]} e5 {[%emt 0:00:03]} 2. Nf3 {[%emt 0:00:01]} Nc6 {[%emt 0:00:01]} 3. c3 {[%emt 0:00:05]} Nf6 {[%emt 0:00:02]} 4. d3 {[%emt 0:00:00]} Bc5 {[%emt 0:00:03]} 5. Bg5 {[%emt 0:00:01]} h6 {[%emt 0:00:04]} 6. Bh4 {[%emt 0:00:02]} O-O {[%emt 0:00:03]} 7. b4 {[%emt 0:00:04]} Bb6 {[%emt 0:00:08]} 8. Nbd2 {[%emt 0:00:13]} d6 {[%emt 0:00:12]} 9. a4 {[%emt 0:00:07]} a5 {[%emt 0:00:03]} 10. b5 {[%emt 0:00:07]} Nb8 {[%emt 0:00:02]} 11. Nc4 {[%emt 0:00:21]} Bc5 {[%emt 0:00:36]} 12. Ne3 {[%emt 0:00:19]} c6 {[%emt 0:00:06]} 13. Be2 {[%emt 0:00:27]} g5 {[%emt 0:00:53]} 14. Bg3 {[%emt 0:00:24]} cxb5 {[%emt 0:00:05]} 15. axb5 {[%emt 0:00:16]} Bxe3 {[%emt 0:00:03]} 16. fxe3 {[%emt 0:00:06]} Ng4 {[%emt 0:00:09]} 17. Qd2 {[%emt 0:00:16]} Qb6 {[%emt 0:00:01]} 18. d4 {[%emt 0:00:13]} exd4 {[%emt 0:00:18]} 19. exd4 {[%emt 0:00:03]} Re8 {[%emt 0:00:05]} *

[Event "56th Biel Festival Rapid 2023"]
[Site "Biel"]
[Date "2024.04.13"]
[Round "6.25"]
[White "Ramadugu Akshay"]
[Black "Piazza, Carlo"]
[Result "*"]
[WhiteElo "1844"]
[BlackElo "2106"]
[PlyCount "50"]
[EventDate "2023.07.16"]
[EventType "swiss"]
[EventCountry "SUI"]
[TimeControl "900+5"]

1. d4 {[%emt 0:00:04]} Nf6 {[%emt 0:00:05]} 2. c4 {[%emt 0:00:05]} g6 {[%emt 0:00:01]} 3. Nc3 {[%emt 0:00:01]} d5 {[%emt 0:00:01]} 4. cxd5 {[%emt 0:00:01]} Nxd5 {[%emt 0:00:03]} 5. e4 {[%emt 0:00:01]} Nxc3 {[%emt 0:00:01]} 6. bxc3 {[%emt 0:00:01]} Bg7 {[%emt 0:00:02]} 7. Nf3 {[%emt 0:00:02]} c5 {[%emt 0:00:03]} 8. Be3 {[%emt 0:00:02]} Qa5 {[%emt 0:00:01]} 9. Nd2 {[%emt 0:00:03]} O-O {[%emt 0:00:37]} 10. Be2 {[%emt 0:00:39]} Nc6 {[%emt 0:00:27]} 11. O-O {[%emt 0:00:12]} Qxc3 {[%emt 0:02:16]} 12. Rc1 {[%emt 0:00:05]} Qb4 {[%emt 0:00:05]} 13. dxc5 {[%emt 0:02:29]} Rd8 {[%emt 0:00:49]} 14. Qc2 {[%emt 0:00:38]} Be6 {[%emt 0:00:08]} 15. Rb1 {[%emt 0:00:59]} Qa5 {[%emt 0:02:26]} 16. Nc4 {[%emt 0:00:04]} Qc7 {[%emt 0:00:31]} 17. Rfc1 {[%emt 0:00:12]} Nd4 {[%emt 0:01:09]} 18. Bxd4 {[%emt 0:00:15]} Rxd4 {[%emt 0:00:13]} 19. Na3 {[%emt 0:00:06]} a6 {[%emt 0:00:31]} 20. Rb6 {[%emt 0:01:10]} Rad8 {[%emt 0:02:43]} 21. Qb1 {[%emt 0:00:33]} Rd2 {[%emt 0:00:19]} 22. Rxb7 {[%emt 0:03:07]} Qf4 {[%emt 0:00:37]} 23. Bf3 {[%emt 0:01:01]} Be5 {[%emt 0:00:17]} 24. g3 {[%emt 0:00:08]} Qxf3 {[%emt 0:01:32]} 25. Rf1 {[%emt 0:00:01]} Bh3 {[%emt 0:00:42]} *

[Event "56th Biel Festival Rapid 2023"]
[Site "Biel"]
[Date "2024.04.13"]
[Round "6.29"]
[White "Olarte, Stefan"]
[Black "Ermeni, Avni"]
[Result "*"]
[WhiteElo "1879"]
[BlackElo "2138"]
[PlyCount "40"]
[EventDate "2023.07.16"]
[EventType "swiss"]
[EventCountry "SUI"]
[TimeControl "900+5"]

1. Nf3 {[%emt 0:00:05]} c5 {[%emt 0:00:01]} 2. c4 {[%emt 0:00:01]} Nf6 {[%emt 0:00:05]} 3. b3 {[%emt 0:00:02]} e6 {[%emt 0:00:03]} 4. Bb2 {[%emt 0:00:01]} d5 {[%emt 0:00:05]} 5. g3 {[%emt 0:00:12]} Nc6 {[%emt 0:00:00]} 6. Bg2 {[%emt 0:00:03]} Be7 {[%emt 0:00:03]} 7. O-O {[%emt 0:00:04]} O-O {[%emt 0:00:13]} 8. d3 {[%emt 0:00:12]} d4 {[%emt 0:00:09]} 9. e4 {[%emt 0:00:12]} e5 {[%emt 0:01:11]} 10. h3 {[%emt 0:00:15]} a5 {[%emt 0:00:18]} 11. a4 {[%emt 0:00:56]} Re8 {[%emt 0:01:13]} 12. Nh2 {[%emt 0:00:12]} Bd6 {[%emt 0:01:15]} 13. f4 {[%emt 0:00:17]} Nb4 {[%emt 0:00:25]} 14. f5 {[%emt 0:00:15]} g6 {[%emt 0:00:29]} 15. g4 {[%emt 0:00:16]} gxf5 {[%emt 0:00:01]} 16. g5 {[%emt 0:00:59]} Nd7 {[%emt 0:00:39]} 17. Rxf5 {[%emt 0:00:40]} Nf8 {[%emt 0:00:09]} 18. Qh5 {[%emt 0:00:15]} Ng6 {[%emt 0:06:00]} 19. Ng4 {[%emt 0:00:49]} Bxf5 {[%emt 0:00:25]} 20. exf5 {[%emt 0:02:37]} Be7 {[%emt 0:00:15]} *

[Event "56th Biel Festival Rapid 2023"]
[Site "Biel"]
[Date "2024.04.13"]
[Round "6.32"]
[White "Rahimi, Hamid"]
[Black "Prieb, Robert"]
[Result "0-1"]
[WhiteElo "1484"]
[BlackElo "2060"]
[PlyCount "54"]
[EventDate "2023.07.16"]
[EventType "swiss"]
[EventCountry "SUI"]
[TimeControl "900+5"]

1. d4 {[%emt 0:00:04]} Nf6 {[%emt 0:00:02]} 2. c4 {[%emt 0:00:02]} g6 {[%emt 0:00:03]} 3. Nc3 {[%emt 0:00:01]} d5 {[%emt 0:00:02]} 4. Bg5 {[%emt 0:00:04]} Ne4 {[%emt 0:00:04]} 5. Nxe4 {[%emt 0:00:10]} dxe4 {[%emt 0:00:02]} 6. Bf4 {[%emt 0:00:29]} Bg7 {[%emt 0:00:17]} 7. e3 {[%emt 0:00:10]} O-O {[%emt 0:00:21]} 8. Ne2 {[%emt 0:00:26]} c5 {[%emt 0:00:36]} 9. h4 {[%emt 0:00:27]} Bg4 {[%emt 0:00:10]} 10. Qb3 {[%emt 0:00:38]} Nc6 {[%emt 0:00:57]} 11. dxc5 {[%emt 0:00:54]} e5 {[%emt 0:00:33]} 12. Bg3 {[%emt 0:00:45]} Qa5+ {[%emt 0:00:43]} 13. Nc3 {[%emt 0:00:18]} f5 {[%emt 0:00:59]} 14. Be2 {[%emt 0:01:58]} Bxe2 {[%emt 0:00:11]} 15. Kxe2 {[%emt 0:00:05]} f4 {[%emt 0:00:03]} 16. exf4 {[%emt 0:00:00]} Nd4+ {[%emt 0:00:02]} 17. Ke3 {[%emt 0:00:14]} Nxb3 {[%emt 0:00:02]} 18. axb3 {[%emt 0:00:02]} Qxc5+ {[%emt 0:00:04]} 19. Ke2 {[%emt 0:00:05]} exf4 {[%emt 0:00:03]} 20. Bh2 {[%emt 0:00:06]} f3+ {[%emt 0:00:02]} 21. gxf3 {[%emt 0:00:01]} exf3+ {[%emt 0:00:02]} 22. Kf1 {[%emt 0:00:08]} Bxc3 {[%emt 0:00:03]} 23. bxc3 {[%emt 0:00:01]} Rae8 {[%emt 0:00:04]} 24. Bg3 {[%emt 0:00:18]} Re2 {[%emt 0:00:06]} 25. Rd1 {[%emt 0:00:14]} Rfe8 {[%emt 0:00:03]} 26. h5 {[%emt 0:00:15]} gxh5 {[%emt 0:00:12]} 27. Rh4 {[%emt 0:00:07]} Qf5 {[%emt 0:00:02]} 0-1

[Event "56th Biel Festival Rapid 2023"]
[Site "Biel"]
[Date "2024.04.13"]
[Round "6.33"]
[White "Rivaud, Christophe"]
[Black "Materia, Matteo"]
[Result "*"]
[WhiteElo "1955"]
[BlackElo "1780"]
[PlyCount "52"]
[EventDate "2023.07.16"]
[EventType "swiss"]
[EventCountry "SUI"]
[TimeControl "900+5"]

1. d4 {[%emt 0:00:01]} Nf6 {[%emt 0:00:01]} 2. c4 {[%emt 0:00:04]} e6 {[%emt 0:00:01]} 3. g3 {[%emt 0:00:02]} d5 {[%emt 0:00:04]} 4. Bg2 {[%emt 0:00:02]} Be7 {[%emt 0:00:05]} 5. Nf3 {[%emt 0:00:03]} O-O {[%emt 0:00:00]} 6. O-O {[%emt 0:00:02]} c6 {[%emt 0:00:02]} 7. Nc3 {[%emt 0:00:04]} b6 {[%emt 0:00:47]} 8. Qc2 {[%emt 0:00:18]} Bb7 {[%emt 0:00:33]} 9. b3 {[%emt 0:00:14]} Nbd7 {[%emt 0:00:17]} 10. Bb2 {[%emt 0:00:08]} c5 {[%emt 0:00:57]} 11. cxd5 {[%emt 0:01:01]} Nxd5 {[%emt 0:00:13]} 12. Qd2 {[%emt 0:03:01]} Nxc3 {[%emt 0:02:12]} 13. Bxc3 {[%emt 0:00:18]} cxd4 {[%emt 0:00:54]} 14. Bxd4 {[%emt 0:00:18]} Bf6 {[%emt 0:01:23]} 15. Bxf6 {[%emt 0:00:26]} Nxf6 {[%emt 0:02:07]} 16. Rfd1 {[%emt 0:00:04]} Qxd2 {[%emt 0:00:05]} 17. Rxd2 {[%emt 0:00:04]} Rfd8 {[%emt 0:00:56]} 18. Rad1 {[%emt 0:00:02]} Rxd2 {[%emt 0:01:15]} 19. Rxd2 {[%emt 0:00:02]} Kf8 {[%emt 0:00:35]} 20. h3 {[%emt 0:00:16]} Ke7 {[%emt 0:00:27]} 21. Ne5 {[%emt 0:01:09]} Bxg2 {[%emt 0:00:28]} 22. Kxg2 {[%emt 0:00:03]} Rc8 {[%emt 0:00:24]} 23. g4 {[%emt 0:00:20]} Rc7 {[%emt 0:00:31]} 24. f3 {[%emt 0:01:30]} Nd7 {[%emt 0:01:17]} 25. Nc4 {[%emt 0:02:56]} Nf6 {[%emt 0:01:02]} 26. e4 {[%emt 0:00:15]} Rd7 {[%emt 0:00:19]} *

[Event "56th Biel Festival Rapid 2023"]
[Site "Biel"]
[Date "2024.04.13"]
[Round "6.36"]
[White "Kreienbuehl, Andreas"]
[Black "Paholok, Igor"]
[Result "*"]
[WhiteElo "2138"]
[BlackElo "1710"]
[PlyCount "52"]
[EventDate "2023.07.16"]
[EventType "swiss"]
[EventCountry "SUI"]
[TimeControl "900+5"]

1. d4 {[%emt 0:00:03]} g6 {[%emt 0:00:04]} 2. c4 {[%emt 0:00:05]} Bg7 {[%emt 0:00:02]} 3. Nc3 {[%emt 0:00:05]} c5 {[%emt 0:00:05]} 4. d5 {[%emt 0:00:05]} Bxc3+ {[%emt 0:00:00]} 5. bxc3 {[%emt 0:00:02]} f5 {[%emt 0:00:01]} 6. Qc2 {[%emt 0:01:22]} Nf6 {[%emt 0:00:07]} 7. f3 {[%emt 0:00:09]} d6 {[%emt 0:00:20]} 8. Bg5 {[%emt 0:01:45]} Qa5 {[%emt 0:01:24]} 9. e3 {[%emt 0:00:18]} Bd7 {[%emt 0:00:19]} 10. Bd3 {[%emt 0:01:38]} Ba4 {[%emt 0:02:19]} 11. Qd2 {[%emt 0:01:29]} Nbd7 {[%emt 0:00:15]} 12. Rb1 {[%emt 0:00:19]} Rb8 {[%emt 0:00:28]} 13. Ne2 {[%emt 0:00:49]} Ne5 {[%emt 0:00:10]} 14. Nf4 {[%emt 0:00:41]} Bd7 {[%emt 0:00:47]} 15. O-O {[%emt 0:01:04]} O-O {[%emt 0:02:01]} 16. Ne6 {[%emt 0:01:40]} Bxe6 {[%emt 0:00:27]} 17. dxe6 {[%emt 0:00:02]} Nxd3 {[%emt 0:00:38]} 18. Qxd3 {[%emt 0:00:02]} Kg7 {[%emt 0:00:03]} 19. Rf2 {[%emt 0:01:27]} Qd8 {[%emt 0:00:17]} 20. e4 {[%emt 0:00:30]} fxe4 {[%emt 0:00:03]} 21. fxe4 {[%emt 0:00:01]} Qc8 {[%emt 0:00:13]} 22. Bxf6+ {[%emt 0:00:14]} exf6 {[%emt 0:01:53]} 23. e7 {[%emt 0:01:22]} Rf7 {[%emt 0:00:32]} 24. Qxd6 {[%emt 0:00:02]} Qe8 {[%emt 0:00:02]} 25. e5 {[%emt 0:00:18]} f5 {[%emt 0:00:38]} 26. g4 {[%emt 0:00:37]} f4 {[%emt 0:01:00]} *